[Event "European Women Blitz-ch 2024"]
[Site "Monaco"]
[Date "2025.01.10"]
[Round "11.5"]
[White "Osmak, Yuliia"]
[Black "Wagner, Dinara"]
[Result "0-1"]
[Annotator "TA"]
[ECO "A00"]
[WhiteElo "2463"]
[BlackElo "2437"]
[PlyCount "64"]
[EventDate "2025.01.06"]
[EventType "swiss"]
[EventCountry "MNC"]
[SourceTitle "playchess.com"]
[Source "ChessBase"]
[SourceQuality "1"]
[TimeControl "180+2"]

{[%evp 9,64,-11,21,24,14,16,47,36,53,35,36,6,8,-2,0,-7,-4,2,-4,0,-11,-18,-30,-18,-16,-52,-32,-111,26,50,308,-302,-300,-300,-317,-320,-317,-810,-795,-1165,-936,-5637,-5630,-5626,-5609,-5610,-5290,-29994,-29990,-29994,-29992,-29992,-29993,-29997,-29998,-29998,-29999]} 1. b4 {[%emt 0:00:01]} Nf6 {[%emt 0:00:01]} 2. Bb2 {[%emt 0:00:00]} d6 {[%emt 0:00:06][%cal Bd7d6,Bd6d5][%mdl 32]} 3. e3 {[%emt 0:00:02]} e5 {[%emt 0:00:01]} 4. Nf3 {[%emt 0:00:02]} g6 {[%emt 0:00:07]} 5. d4 {[%emt 0:00:01]} e4 {[%emt 0:00:04]} 6. Nfd2 {[%emt 0:00:01]} d5 {[%emt 0:00:02]} 7. b5 {[%emt 0:00:01]} Bg7 {[%emt 0:00:04]} 8. c4 {[%emt 0:00:03]} c6 {[%emt 0:00:00]} 9. Ba3 {[%emt 0:00:04]} cxb5 {[%emt 0:00:12]} 10. cxb5 {[%emt 0:00:02]} Bf8 {[%emt 0:00:11]} 11. Bxf8 {[%emt 0:00:03]} Kxf8 {[%emt 0:00:01]} 12. Be2 {[%emt 0:00:01]} Kg7 {[%emt 0:00:01]} 13. O-O {[%emt 0:00:02]} h5 {[%emt 0:00:01]} 14. Nc3 {[%emt 0:00:10]} Be6 {[%emt 0:00:03]} 15. f3 {[%emt 0:00:04] Inhibits Ng4.} exf3 {[%emt 0:00:03]} 16. Nxf3 {[%emt 0:00:05]} Nbd7 {[%emt 0:00:04]} 17. Ng5 {[%emt 0:00:08]} Qe7 {[%emt 0:00:02]} 18. Bd3 {[%emt 0:00:09] [#]} (18. Qd2 $15) 18... Bg4 {[%emt 0:00:05]} (18... Ng4 $1 $17 19. Nxe6+ Qxe6) 19. Qd2 $11 {[%emt 0:00:04][%cal Oc3d5]} Rac8 $2 {[%emt 0:00:03][%mdl 8192]} (19... Rhf8 $14) 20. h3 $4 {[%emt 0:00:05][%mdl 8192] [#]} (20. Nxd5 $1 $18 Qa3 21. h3) 20... Rxc3 $1 $19 {[%emt 0:00:07][%mdl 512]} 21. Qxc3 {[%emt 0:00:47] Threatens to win with Rae1.} Qxe3+ {[%emt 0:00:01]} 22. Rf2 {[%emt 0:00:02]} Qxg5 {[%emt 0:00:01]} 23. hxg4 $2 {[%emt 0:00:06]} (23. Qc1 Qxc1+ 24. Rxc1) 23... hxg4 {[%emt 0:00:09]} 24. Re1 {[%emt 0:00:16]} g3 {[%emt 0:00:09][%cal Og5h4] ( -> ...Qh4!)} 25. Rf3 {[%emt 0:00:02]} Qh4 {[%emt 0:00:03][%csl Gh8][%cal Rh4h1]} 26. Kf1 {[%emt 0:00:03]} Qh1+ {[%emt 0:00:01]} 27. Ke2 {[%emt 0:00:02]} Qxg2+ {[%emt 0:00:01]} 28. Ke3 {[%emt 0:00:06]} Re8+ {[%emt 0:00:21]} 29. Kf4 {[%emt 0:00:01]} Nh5+ {[%emt 0:00:18]} 30. Kg4 {[%emt 0:00:02]} Ndf6+ {[%emt 0:00:01]} 31. Kh4 {[%emt 0:00:23]} Qxf3 {[%emt 0:00:03][%csl Gf6][%cal Rf3g4]} 32. Kh3 {[%emt 0:00:15]} Nf4+ {[%emt 0:00:03]} 0-1

[Event "European Women Blitz-ch 2024"]
[Site "Monaco"]
[Date "2025.01.10"]
[Round "11.6"]
[White "Ushenina, Anna"]
[Black "Sliwicka, Alicja"]
[Result "1-0"]
[Annotator "TA"]
[ECO "A17"]
[WhiteElo "2418"]
[BlackElo "2344"]
[PlyCount "79"]
[EventDate "2025.01.06"]
[EventType "swiss"]
[EventCountry "MNC"]
[SourceTitle "playchess.com"]
[Source "ChessBase"]
[SourceQuality "1"]
[TimeControl "180+2"]

{[%evp 9,79,6,13,1,6,0,7,10,15,15,41,25,54,48,60,29,38,23,42,14,41,-20,94,93,94,96,108,114,131,64,61,66,70,59,64,67,80,74,70,61,111,47,40,-93,593,610,585,606,630,611,647,647,689,671,709,689,5302,1536,2061,2069,29955,955,29987,2201,2144,1600,2338,2223,29986,29986,29986,29987]} 1. Nf3 {[%emt 0:00:01]} d5 {[%emt 0:00:03]} 2. e3 {[%emt 0:00:01]} Nf6 {[%emt 0:00:02]} 3. c4 {[%emt 0:00:01]} e6 {[%emt 0:00:02]} 4. Nc3 {[%emt 0:00:01]} a6 {[%emt 0:00:01]} 5. b3 {[%emt 0:00:01]} b6 {[%emt 0:00:03]} 6. cxd5 {[%emt 0:00:09]} exd5 {[%emt 0:00:03]} 7. Bb2 {[%emt 0:00:02]} Bd6 {[%emt 0:00:03]} 8. g3 {[%emt 0:00:02]} O-O {[%emt 0:00:04]} 9. Bg2 {[%emt 0:00:01]} c6 {[%emt 0:00:09]} 10. O-O {[%emt 0:00:02]} Bg4 {[%emt 0:00:02]} 11. Rc1 {[%emt 0:00:08]} Nbd7 {[%emt 0:00:05]} 12. Qc2 {[%emt 0:00:01]} Rc8 {[%emt 0:00:06]} 13. Nd4 {[%emt 0:00:15]} Bh5 {[%emt 0:00:21]} 14. d3 {[%emt 0:00:14]} Bg6 {[%emt 0:00:05] Inhibits Nf5.} 15. Qd2 {[%emt 0:00:07]} (15. Bh3 $14) 15... c5 {[%emt 0:00:03]} (15... Ne5 $11) 16. Nde2 $16 {[%emt 0:00:16]} d4 {[%emt 0:00:04]} 17. exd4 {[%emt 0:00:06]} cxd4 {[%emt 0:00:01]} 18. Ne4 {[%emt 0:00:09]} Nc5 {[%emt 0:00:15][%cal Rf6e4] [#]} 19. Nxf6+ {[%emt 0:00:28]} (19. Nxd4 Nfxe4 20. dxe4 Nxe4 $14) (19. Nxd6 $1 $16 Qxd6 20. Rc4 (20. Bxd4 Nxd3 21. Rxc8 Rxc8 $14)) 19... Qxf6 $14 {[%emt 0:00:08]} 20. Bxd4 {[%emt 0:00:04]} (20. Nxd4 $2 {loses.} Be5 21. Rc4 Nxd3 $19 (21... Bxd3 $2 22. Rxc5 bxc5 23. Qxd3 $19)) 20... Qe7 {[%emt 0:00:12]} 21. Nc3 {[%emt 0:00:12]} (21. Bxc5 {simplifies} Rxc5 22. Nc3 Qd8 23. d4) 21... Nxd3 {[%emt 0:00:08] ...Qd7 is the strong threat.} 22. Nd5 {[%emt 0:00:02]} Qe6 {[%emt 0:00:13]} 23. Rxc8 {[%emt 0:00:04]} Rxc8 {[%emt 0:00:05]} 24. Nxb6 {[%emt 0:00:06]} Rd8 {[%emt 0:00:06]} (24... Bb4 $14 25. Qe3 Rc2) 25. Nc4 {[%emt 0:00:21]} (25. Nd5 $16) 25... Bxg3 {[%emt 0:00:11]} 26. Bb6 {[%emt 0:00:08] Inhibits Bc7.} (26. hxg3 $14 {keeps the upper hand.} Rxd4 27. Qc3) 26... Bh4 $2 {[%emt 0:00:43][%mdl 8192]} (26... Bf4 $17 27. Qd1 Rb8) 27. Bxd8 $18 {[%emt 0:00:01]} Bxd8 {[%emt 0:00:01]} 28. Nb2 {[%emt 0:00:04]} Qd6 {[%emt 0:00:10]} 29. Nxd3 {[%emt 0:00:05]} Bxd3 {[%emt 0:00:01]} 30. Rd1 {[%emt 0:00:03]} Bc7 {[%emt 0:00:08][%csl Gc7][%cal Rd6h2]} 31. Qxd3 {[%emt 0:00:01]} Qxh2+ {[%emt 0:00:02]} 32. Kf1 {[%emt 0:00:01][%cal Od3d8]} h5 {[%emt 0:00:02]} 33. Qxa6 {[%emt 0:00:06] Threatening mate with Qc8+.} Qf4 {[%emt 0:00:05]} 34. Qc4 {[%emt 0:00:03]} Qe5 {[%emt 0:00:09]} 35. Qd5 {[%emt 0:00:15]} (35. Bd5 $142 g6 36. Bxf7+ Kg7 37. Rd7 Bb8 38. Qc6 Bd6 39. Rxd6 (39. Qxd6 Qxd6 40. Rxd6 Kf8 $18) (39. Bxg6+ Be7 $18) 39... Kxf7 40. Rd7+ (40. Rxg6 h4 $18) 40... Qe7 41. Rxe7+ Kxe7 42. a4 (42. Qxg6 h4 43. Kg2 Kd7 44. Kh3 Kc7 45. a4 Kd7 46. a5 Kc7)) 35... Qh2 {[%emt 0:00:07]} 36. Qa8+ {[%emt 0:00:03]} (36. Re1 $142 g6 37. Qd4 Qd6 38. Re8+ Qf8 39. Rxf8+ Kxf8 40. Qc5+ Kg7 41. Qc3+ (41. Qxc7 Kf6 42. f4 g5 43. Qe5+ Kg6 44. fxg5 Kh7 45. Qf6 Kg8 46. Bd5 h4 47. Qxf7+ Kh8 48. Qg8#) 41... f6 42. Qxc7+ Kh6 43. Qe7) 36... Kh7 {[%emt 0:00:01]} 37. Qe4+ {[%emt 0:00:02]} g6 {[%emt 0:00:02]} 38. Rd7 {[%emt 0:00:06]} Kg7 {[%emt 0:00:05]} 39. Qe7 {[%emt 0:00:07]} Qf4 {[%emt 0:00:04]} 40. Rxc7 {[%emt 0:00:03]} 1-0

[Event "European Women Blitz-ch 2024"]
[Site "Monaco"]
[Date "2025.01.10"]
[Round "11.7"]
[White "Batsiashvili, Nino"]
[Black "Kulon, Klaudia"]
[Result "1-0"]
[Annotator "TA"]
[ECO "E66"]
[WhiteElo "2476"]
[BlackElo "2393"]
[PlyCount "121"]
[EventDate "2025.01.06"]
[EventType "swiss"]
[EventCountry "MNC"]
[SourceTitle "playchess.com"]
[Source "ChessBase"]
[SourceQuality "1"]
[TimeControl "180+2"]

{[%evp 41,121,133,132,95,137,136,137,111,187,191,199,193,182,166,197,169,175,170,177,92,177,184,171,57,238,238,253,221,237,223,228,177,373,0,91,0,204,-81,617,387,403,281,437,431,544,523,504,482,497,415,397,366,447,382,458,421,467,477,1625,2093,6279,5260,29979,29980,29989,29990,29994,29989,29990,29990,29990,29991,29991,29992,29992,29992,29993,29993,29998,29997,29997,29994]} 1. d4 {[%emt 0:00:01]} Nf6 {[%emt 0:00:00]} 2. c4 {[%emt 0:00:01]} g6 {[%emt 0:00:01]} 3. Nf3 {[%emt 0:00:01]} Bg7 {[%emt 0:00:01]} 4. g3 {[%emt 0:00:00]} O-O {[%emt 0:00:01]} 5. Bg2 {[%emt 0:00:01]} d6 {[%emt 0:00:01]} 6. Nc3 {[%emt 0:00:01]} Nc6 {[%emt 0:00:01]} 7. O-O {[%emt 0:00:02]} a6 {[%emt 0:00:00]} 8. d5 {[%emt 0:00:11]} Na5 {[%emt 0:00:01]} 9. Nd2 {[%emt 0:03:02]} c5 {[%emt 0:00:01]} 10. Qc2 {[%emt 0:00:00]} Rb8 {[%emt 0:00:03]} 11. b3 {[%emt 0:00:00]} b5 {[%emt 0:00:04]} 12. Rb1 {[%emt 0:00:00]} b4 {[%emt 0:00:14]} 13. Nce4 {[%emt 0:00:00]} e6 {[%emt 0:00:08]} 14. Nxf6+ {[%emt 0:00:00]} Bxf6 {[%emt 0:00:01]} 15. Ne4 {[%emt 0:00:00]} Bg7 {[%emt 0:00:10]} 16. dxe6 {[%emt 0:00:00]} Bxe6 {[%emt 0:00:09]} 17. Bb2 {[%emt 0:00:00]} Nc6 {[%emt 0:00:13]} 18. Bxg7 {[%emt 0:00:00]} Kxg7 {[%emt 0:00:03]} 19. Qb2+ {[%emt 0:00:00]} f6 {[%emt 0:00:05]} 20. Nxc5 {[%emt 0:00:00]} dxc5 {[%emt 0:00:36]} 21. Bxc6 {[%emt 0:00:00]} Qc7 {[%emt 0:00:05]} 22. Bf3 {[%emt 0:00:00]} Bf5 {[%emt 0:00:07]} 23. Rbd1 {[%emt 0:00:00]} Rbd8 {[%emt 0:00:03]} 24. Rd5 {[%emt 0:00:00]} Rxd5 {[%emt 0:00:04]} (24... a5 $16 {was necessary.} 25. Rfd1 Be6) 25. cxd5 $18 {[%emt 0:00:00]} Qd6 {[%emt 0:00:06]} 26. Rc1 {[%emt 0:00:00]} Re8 {[%emt 0:00:04]} 27. Qd2 {[%emt 0:00:00]} g5 {[%emt 0:00:06]} 28. e3 {[%emt 0:00:00]} g4 {[%emt 0:00:17]} 29. Bg2 {[%emt 0:00:00]} h5 {[%emt 0:00:01]} 30. Re1 {[%emt 0:00:00]} (30. Qe2 $18) 30... Bg6 {[%emt 0:00:05]} (30... Be4 $16 31. Bxe4 Rxe4) 31. e4 $18 {[%emt 0:00:00]} Re5 {[%emt 0:00:04]} 32. Qf4 {[%emt 0:00:04]} (32. Re2 $18) 32... Qe7 $2 {[%emt 0:00:09]} (32... f5 $14) 33. Re3 $18 {[%emt 0:00:06]} Qd6 {[%emt 0:00:03]} 34. h3 {[%emt 0:00:04]} gxh3 {[%emt 0:00:03]} 35. Bxh3 {[%emt 0:00:01]} a5 {[%emt 0:00:09]} 36. Be6 {[%emt 0:00:13]} Qc7 $2 {[%emt 0:00:06]} (36... a4 37. Kh2 (37. bxa4 c4 $14) 37... Qb6) 37. Rf3 $2 {[%emt 0:00:04]} (37. g4 $18) 37... Qe7 {[%emt 0:00:02] [#]} (37... Qd8 $1 $11) 38. Re3 {[%emt 0:00:06]} ({Better is} 38. Kh2 $1 $16) 38... a4 $2 {[%emt 0:00:05]} (38... Qc7 $1 $11) 39. Bf5 $2 {[%emt 0:00:05]} (39. bxa4 c4 $14) (39. Kh2 $18) 39... Bf7 $2 {[%emt 0:00:01][%mdl 8192]} (39... Bxf5 $17 40. exf5 Rxe3 41. fxe3 Qe5 42. Qxe5 (42. bxa4 $2 {too greedy.} Qxf4 43. gxf4 c4 $19) 42... fxe5) 40. Rd3 {[%emt 0:00:02]} Qd6 {[%emt 0:00:05]} 41. Qf3 {[%emt 0:00:06]} ({Less strong is} 41. bxa4 c4 42. Rd1 (42. Rd4 Qc5 $18) 42... c3 $18) 41... c4 {[%emt 0:00:07]} (41... Bg6 $142 42. Bxg6 (42. bxa4 c4 $16) 42... Kxg6) 42. bxc4 $18 {[%emt 0:00:02]} b3 {[%emt 0:00:00]} 43. axb3 {[%emt 0:00:01]} a3 {[%emt 0:00:01]} 44. Qe2 {[%emt 0:00:03]} Re7 {[%emt 0:00:06]} 45. Qa2 {[%emt 0:00:04]} Ra7 {[%emt 0:00:01]} 46. Rd2 {[%emt 0:00:03]} Ra6 {[%emt 0:00:02]} 47. Rc2 {[%emt 0:00:03]} Qc5 {[%emt 0:00:01]} 48. b4 {[%emt 0:00:01]} Qxb4 {[%emt 0:00:02]} 49. c5 {[%emt 0:00:00]} Ra5 {[%emt 0:00:09]} (49... Rc6 $142 50. Qc4 Qb1+ 51. Kg2 Ra6 52. Qxa6 Qxc2 53. Qxa3 Bxd5 54. exd5 Qxf5) 50. c6 $18 {[%emt 0:00:02]} Rc5 {[%emt 0:00:00]} 51. c7 {[%emt 0:00:03]} Rxc2 {[%emt 0:00:12]} 52. Qxc2 {[%emt 0:00:01]} Qb2 {[%emt 0:00:01]} 53. c8=Q {[%emt 0:00:14]} Qd4 {[%emt 0:00:07]} 54. Q8c4 {[%emt 0:00:00]} Qa7 {[%emt 0:00:01]} 55. Q2a2 {[%emt 0:00:00]} Qb6 {[%emt 0:00:01]} 56. Qcb3 {[%emt 0:00:00]} Qd4 {[%emt 0:00:00]} 57. Qbxa3 {[%emt 0:00:00]} Qe5 {[%emt 0:00:01]} 58. Q2b3 {[%emt 0:00:00]} h4 {[%emt 0:00:01]} 59. gxh4 {[%emt 0:00:00]} Kh6 {[%emt 0:00:00]} 60. Qe3+ {[%emt 0:00:00]} Kg7 {[%emt 0:00:01]} 61. Qg3+ {[%emt 0:00:00]} 1-0

[Event "European Women Blitz-ch 2024"]
[Site "Monaco"]
[Date "2025.01.10"]
[Round "11.8"]
[White "Zhukova, Natalia"]
[Black "Rudzinska, Michalina"]
[Result "0-1"]
[Annotator "TA"]
[ECO "D38"]
[WhiteElo "2306"]
[BlackElo "2226"]
[PlyCount "75"]
[EventDate "2025.01.06"]
[EventType "swiss"]
[EventCountry "MNC"]
[SourceTitle "playchess.com"]
[Source "ChessBase"]
[SourceQuality "1"]
[TimeControl "180+2"]

{[%evp 14,75,25,17,67,17,102,94,108,104,171,131,139,156,150,139,243,238,238,232,221,226,235,231,227,225,206,221,225,210,210,182,177,193,226,138,250,201,311,219,293,141,277,83,180,84,79,-66,-80,-60,-78,-101,-102,-95,-85,-141,-27,-133,-24,-439,-152,-704,-711,-29998]} 1. c4 {[%emt 0:00:01]} e6 {[%emt 0:00:01]} 2. Nc3 {[%emt 0:00:01]} d5 {[%emt 0:00:01]} 3. d4 {[%emt 0:00:02]} Nf6 {[%emt 0:00:01]} 4. Nf3 {[%emt 0:00:03]} Bb4 {[%emt 0:00:01]} 5. Bg5 {[%emt 0:00:05]} h6 {[%emt 0:00:13]} 6. Bxf6 {[%emt 0:00:02]} Qxf6 {[%emt 0:00:02]} 7. e3 {[%emt 0:00:01]} O-O {[%emt 0:00:10]} 8. Rc1 {[%emt 0:00:01]} c5 {[%emt 0:00:07]} (8... dxc4 $11 9. Bxc4 c5) 9. dxc5 {[%emt 0:00:18]} ({White should play} 9. cxd5 $14 Rd8 10. Qb3) 9... Bxc5 {[%emt 0:00:21]} (9... dxc4 $11 10. Bxc4 Nd7) 10. cxd5 $16 {[%emt 0:00:10]} Rd8 {[%emt 0:00:07]} 11. Qb3 {[%emt 0:00:16]} b6 {[%emt 0:00:41]} (11... exd5 $16 {was necessary.} 12. Nxd5 Qd6) 12. Ne4 {[%emt 0:00:15]} Qf5 {[%emt 0:00:10]} 13. Nxc5 {[%emt 0:00:08]} bxc5 {[%emt 0:00:01]} 14. Bd3 {[%emt 0:00:12]} (14. Rxc5 $6 Qb1+ 15. Kd2 Ba6 $14) 14... Qg4 {[%emt 0:00:25]} (14... Qf6 $16) 15. O-O $18 {[%emt 0:00:19]} (15. Rxc5 Nd7 (15... Qxg2 $2 16. Rg1 $18) 16. Ra5 Qxg2 $17) 15... exd5 {[%emt 0:00:02]} 16. Rxc5 {[%emt 0:00:07]} Be6 {[%emt 0:00:01]} 17. Nd4 {[%emt 0:00:19]} Nd7 {[%emt 0:00:02]} 18. Rc7 {[%emt 0:00:02]} Ne5 {[%emt 0:00:06]} 19. Be2 {[%emt 0:00:06]} Qh4 {[%emt 0:00:16]} 20. Qc3 {[%emt 0:00:17]} Bg4 {[%emt 0:00:35]} 21. f3 {[%emt 0:00:17]} Bd7 {[%emt 0:00:09]} 22. Nb3 {[%emt 0:00:31]} Ng6 {[%emt 0:00:09]} 23. Nc5 {[%emt 0:00:01]} Be8 {[%emt 0:00:02]} 24. Nb7 {[%emt 0:00:04]} Rdb8 {[%emt 0:00:03]} (24... Rd7 $16) 25. Nd6 {[%emt 0:00:02]} Qg5 {[%emt 0:00:03]} (25... Qb4 $142) 26. g3 {[%emt 0:00:07] and f4 should not be overlooked} Rd8 {[%emt 0:00:05]} 27. Nb7 {[%emt 0:00:02]} (27. f4 $18 Qf6 28. Qxf6 gxf6 29. Nf5) 27... Rdb8 {[%emt 0:00:00]} (27... Rd7 $16) 28. Ba6 $2 {[%emt 0:00:02]} (28. f4 $18 {is the precise move to win.} Qf6 29. Qxf6 gxf6 30. Rfc1) 28... Qf5 {[%emt 0:00:00]} (28... Nf8 $16) 29. Nd6 {[%emt 0:00:02]} (29. Nc5 $18 {has better winning chances.}) 29... Qe6 $16 {[%emt 0:00:01]} 30. Bb7 {[%emt 0:00:02]} (30. Nxe8 $16 Rxe8 31. Bb7) 30... Qxd6 $15 {[%emt 0:00:03]} 31. Bxa8 {[%emt 0:00:01]} Rxa8 {[%emt 0:00:00]} 32. Rc8 {[%emt 0:00:01] [#]} Rxc8 $1 {[%emt 0:00:02]} 33. Qxc8 {[%emt 0:00:01]} Qe7 $36 {[%emt 0:00:01][%mdl 2048] Keeping White busy.} 34. Kf2 {[%emt 0:00:02] [#]} (34. Qc3 $142) 34... Kh7 {[%emt 0:00:01]} (34... Ne5 $1 $17 35. Rd1 Nc4) 35. Rc1 {[%emt 0:00:01]} (35. Rd1 $11 {remains equal.}) 35... Bb5 {[%emt 0:00:02]} (35... Qf6 $17 {[%cal Og6e5] Hoping for ...Ne5!.} 36. Qc2 d4 37. exd4 Qxd4+ 38. Kg2 Qe3) 36. a3 $2 {[%emt 0:00:03][%mdl 8192]} (36. Qc5 $11 {and White has nothing to worry.} Qb7 37. Qc2) 36... Qf6 $2 {[%emt 0:00:01]} (36... d4 $19 37. exd4 Qe2+ 38. Kg1 Qe3+ (38... Qxb2 $2 39. Qc3 $19) 39. Kg2 Qd2+ (39... Qxd4 40. Qc3 $17) 40. Kg1 Qxd4+ 41. Kh1 Be2 (41... Qxb2 $2 42. Rc2 $19)) 37. Qc3 $2 {[%emt 0:00:01]} (37. Qc2 $17) 37... Ne5 $19 {[%emt 0:00:02]} 38. Rf1 {[%emt 0:00:13]} 0-1

[Event "European Women Blitz-ch 2024"]
[Site "Monaco"]
[Date "2025.01.10"]
[Round "11.9"]
[White "Stefanova, Antoaneta"]
[Black "Injac, Teodora"]
[Result "1-0"]
[Annotator "TA"]
[ECO "D77"]
[WhiteElo "2418"]
[BlackElo "2453"]
[PlyCount "51"]
[EventDate "2025.01.06"]
[EventType "swiss"]
[EventCountry "MNC"]
[SourceTitle "playchess.com"]
[Source "ChessBase"]
[SourceQuality "1"]
[TimeControl "180+2"]

{[%evp 13,51,29,38,32,32,33,33,34,29,31,67,71,101,108,104,104,148,56,58,17,99,93,245,137,312,327,323,219,214,214,356,370,440,392,387,398,479,486,494,493]} 1. d4 {[%emt 0:00:01]} Nf6 {[%emt 0:00:01]} 2. Nf3 {[%emt 0:00:00]} g6 {[%emt 0:00:01]} 3. g3 {[%emt 0:00:04]} Bg7 {[%emt 0:00:01]} 4. Bg2 {[%emt 0:00:01]} O-O {[%emt 0:00:01]} 5. O-O {[%emt 0:00:01]} d5 {[%emt 0:00:00]} 6. c4 {[%emt 0:00:06]} dxc4 {[%emt 0:00:02]} 7. Na3 {[%emt 0:00:02]} a5 {[%emt 0:00:00][%cal Oc7c5,Ba7a5,Ba5a4][%mdl 32]} 8. Nxc4 {[%emt 0:00:03]} a4 {[%emt 0:00:01]} 9. Nfe5 {[%emt 0:00:11]} Nfd7 {[%emt 0:00:26]} 10. Bf4 {[%emt 0:00:07]} Nxe5 {[%emt 0:00:05]} 11. Bxe5 {[%emt 0:00:02]} Bh6 {[%emt 0:00:04]} 12. d5 $1 {[%emt 0:00:15] Dodges Nc6} Nd7 {[%emt 0:00:46]} 13. Bc3 {[%emt 0:00:06] White has more active pieces.} Nf6 {[%emt 0:00:07]} 14. e4 {[%emt 0:00:13][%cal Be2e4,Be4e5][%mdl 32]} e6 {[%emt 0:00:29]} 15. Bb4 {[%emt 0:00:34]} (15. d6 $16) 15... Re8 $1 $14 {[%emt 0:00:04]} 16. d6 {[%emt 0:00:03]} Bf8 {[%emt 0:00:23]} (16... e5 $11 {remains equal.}) 17. Rc1 $36 {[%emt 0:00:24][%mdl 2048] Strongly threatening dxc7. White is really pushing.} b5 $2 {[%emt 0:00:26]} (17... cxd6 $16 18. Bxd6 (18. Nxd6 Bxd6 19. Qxd6 Qxd6 $16) 18... Bd7) 18. Ne3 {[%emt 0:00:06]} (18. e5 $18 Nd5 19. dxc7 (19. Bxd5 exd5 20. dxc7 Qxc7 $18) 19... Qxc7 20. Nd6 (20. Bxd5 exd5 21. Nd6 Bxd6 $18) 20... Bxd6 21. Rxc7 Bxc7 22. Bxd5 exd5 23. Re1 (23. Qxd5 Be6 $18)) 18... Bxd6 $2 {[%emt 0:00:13] [#]} (18... e5 $16) 19. e5 $1 $18 {[%emt 0:00:20][%mdl 512]} Bxb4 {[%emt 0:00:01]} 20. Qxd8 {[%emt 0:00:01]} Rxd8 {[%emt 0:00:00]} 21. Bxa8 {[%emt 0:00:02]} Nd5 {[%emt 0:00:13]} (21... Nd7 {is a better defense.} 22. Rfd1 (22. Rxc7 Ba5 $16) 22... Rf8) 22. Rfd1 {[%emt 0:00:11][%cal Ra8d5]} c5 {[%emt 0:00:15]} 23. Nxd5 {[%emt 0:00:07]} exd5 {[%emt 0:00:01]} 24. Bxd5 {[%emt 0:00:02]} ({Resist} 24. Rxd5 Rf8 25. a3 Be6 $18) 24... Rf8 {[%emt 0:00:07]} 25. a3 {[%emt 0:00:04]} Ba5 {[%emt 0:00:01]} 26. Rxc5 {[%emt 0:00:02]} 1-0